bitfinex/quotes_BTCUSD_20241223
["timestamp","ask_amount","ask_price","bid_price","bid_amount"]
[1734955852319,0.00120182,96075.0,96074.0,0.23115203]
[1734955852543,0.00120182,96075.0,96074.0,0.02498667]
[1734955853226,0.0221383,96075.0,96074.0,0.02498667]
[1734955853479,0.00120182,96075.0,96074.0,0.02498667]
[1734955855983,0.00120182,96075.0,96074.0,0.05798666]
[1734955857657,0.00120182,96075.0,96074.0,0.13958666]
[1734955857873,0.00120182,96075.0,96074.0,0.39461375]
[1734955858081,0.00120182,96075.0,96074.0,0.43897298]
[1734955859983,0.00120182,96075.0,96074.0,0.4484983]
[1734955863245,0.00120182,96075.0,96074.0,0.43897298]
[1734955863469,0.00120182,96075.0,96074.0,0.02498667]
[1734955864177,0.00020182,96075.0,96074.0,0.01698667]
[1734955864402,0.041954,96075.0,96074.0,0.01898667]
[1734955864627,0.00020182,96075.0,96074.0,0.0051714]
[1734955864865,0.00020182,96075.0,96074.0,0.0001714]
[1734955865115,0.00020182,96075.0,96074.0,0.0031714]
[1734955865372,0.00020182,96075.0,96074.0,0.0001714]
[1734955865825,0.0646705,96075.0,96074.0,0.0001714]
[1734955866062,0.25015682,96075.0,96074.0,0.0001714]
[1734955866323,0.28257614,96075.0,96074.0,0.0011714]
[1734955866761,0.28257614,96075.0,96074.0,0.0001714]
[1734955866959,0.28057614,96075.0,96074.0,0.0001714]
[1734955867422,0.28157614,96075.0,96074.0,0.0001714]
[1734955867903,0.28357614,96075.0,96074.0,0.0001714]
[1734955868099,0.38257614,96075.0,96074.0,0.0001714]
[1734955868474,0.38757614,96075.0,96074.0,0.0001714]
[1734955868682,0.208207,96058.0,96049.0,0.03119838]
[1734955868912,0.208218,96053.0,96042.0,0.03119838]
[1734955871568,0.0932123,96063.0,96053.0,0.208218]
[1734955871787,0.0932123,96063.0,96053.0,0.416436]
[1734955871997,0.20837282,96075.0,96055.0,0.208214]
[1734955872220,0.20837282,96075.0,96055.0,0.416428]
[1734955872446,0.20837282,96075.0,96063.0,0.03119838]
[1734955872673,0.22306036,96075.0,96063.0,0.03119838]
[1734955872894,0.22306036,96075.0,96064.0,0.0168974]
[1734955873312,0.21037282,96075.0,96063.0,0.03119838]
[1734955873741,0.20837282,96075.0,96063.0,0.03119838]
[1734955874126,0.21537282,96075.0,96063.0,0.03119838]
[1734955874823,0.22037282,96075.0,96063.0,0.03119838]
[1734955875548,0.22037282,96075.0,96055.0,0.208214]
[1734955875549,0.01220182,96075.0,96074.0,0.03119838]
[1734955876026,0.01020182,96075.0,96074.0,0.01688654]
[1734955876261,0.1387114,96075.0,96046.0,0.03119838]
[1734955876492,0.10010789,96070.0,96047.0,0.03119838]
[1734955876731,0.208209,96058.0,96047.0,0.03119838]
[1734955876974,0.10398632,96069.0,96041.0,0.07819838]
[1734955877198,0.208217,96054.0,96041.0,0.03119838]
[1734955878135,0.208217,96054.0,96052.0,0.0011714]
[1734955878386,0.18258632,96053.0,96052.0,0.0011714]
[1734955879317,0.18258632,96053.0,96052.0,0.0001714]
[1734955879559,0.28258632,96053.0,96052.0,0.0001714]
[1734955879789,0.38657264,96053.0,96052.0,0.0001714]
[1734955880547,0.28957264,96053.0,96052.0,0.0001714]
[1734955880798,0.46637426,96053.0,96052.0,0.0001714]
[1734955881027,0.46337426,96053.0,96052.0,0.0001714]
[1734955881204,0.46637426,96053.0,96052.0,0.0001714]
[1734955882019,0.47570202,96053.0,96052.0,0.0001714]
[1734955882283,0.61539128,96053.0,96052.0,0.0001714]
[1734955882954,0.47570202,96053.0,96052.0,0.0001714]
[1734955883656,0.64870202,96053.0,96052.0,4e-07]
[1734955884091,0.68101696,96053.0,96052.0,4e-07]
[1734955884784,0.86726931,96053.0,96052.0,4e-07]
[1734955885356,0.83495437,96053.0,96052.0,4e-07]
[1734955885598,0.86725939,96053.0,96052.0,4e-07]
[1734955885814,0.68100704,96053.0,96052.0,4e-07]
[1734955886489,0.64870202,96053.0,96052.0,4e-07]
[1734955888743,0.78813297,96053.0,96052.0,4e-07]
[1734955889666,0.42430162,96050.0,96049.0,8e-07]
[1734955889913,0.56057338,96050.0,96049.0,8e-07]
[1734955890869,0.80256155,96050.0,96049.0,8e-07]
[1734955891535,0.79656155,96050.0,96049.0,8e-07]
[1734955892004,0.79634034,96050.0,96049.0,8e-07]
[1734955892226,0.89732666,96050.0,96049.0,8e-07]
[1734955892451,0.90132666,96050.0,96049.0,8e-07]
[1734955892890,0.66833849,96050.0,96049.0,8e-07]
[1734955893524,0.67733849,96050.0,96049.0,8e-07]
[1734955896639,0.67750989,96050.0,96049.0,8e-07]
[1734955897820,0.208322,96005.0,96003.0,0.0001714]
[1734955898047,0.12481852,96004.0,96003.0,0.0001714]
[1734955898733,0.44339893,96004.0,96003.0,0.0001714]
[1734955898975,0.208361,95987.0,95979.0,0.0451]
[1734955899203,0.31234732,95987.0,95979.0,0.0451]
[1734955899425,0.31726961,95987.0,95986.0,0.00070517]
[1734955899662,0.73408472,95987.0,95986.0,0.00070517]
[1734955899911,0.75708472,95987.0,95986.0,0.00070517]
[1734955900152,0.76162051,95987.0,95986.0,0.00070517]
[1734955900648,0.7665428,95987.0,95986.0,0.00070517]
[1734955900899,0.87818863,95987.0,95986.0,1.7e-07]
[1734955901375,0.90194378,95987.0,95986.0,1.7e-07]
[1734955901627,0.90194378,95987.0,95986.0,0.00300017]
[1734955902129,0.87326634,95987.0,95986.0,0.00300017]
[1734955902358,0.83710137,95987.0,95986.0,0.00300017]
[1734955902595,0.97634972,95987.0,95986.0,0.00300017]
[1734955903426,0.94410389,95987.0,95986.0,0.00300017]
[1734955903736,0.80485554,95987.0,95986.0,0.00300017]
[1734955906016,0.80485554,95987.0,95986.0,1.7e-07]
[1734955906488,0.80485554,95987.0,95975.0,0.0001714]
[1734955906489,0.54996141,95978.0,95975.0,0.0001714]
[1734955906711,0.65394773,95978.0,95977.0,0.0003311]
[1734955906951,0.71879014,95978.0,95977.0,0.0003311]
[1734955907413,0.34158041,95976.0,95975.0,5e-07]
[1734955907659,0.54618334,95976.0,95975.0,5e-07]
[1734955907890,0.61182779,95976.0,95975.0,5e-07]
[1734955909218,0.61182779,95976.0,95975.0,0.0040005]
[1734955909664,0.61282779,95976.0,95975.0,0.0040005]
[1734955909953,0.54718334,95976.0,95975.0,0.0040005]
[1734955910406,0.54718334,95976.0,95975.0,5e-07]
[1734955912426,0.52418334,95976.0,95975.0,5e-07]
[1734955913223,0.53416462,95976.0,95975.0,5e-07]
[1734955914137,0.55716462,95976.0,95975.0,5e-07]
[1734955914806,0.45716462,95976.0,95975.0,5e-07]
[1734955915050,0.55716462,95976.0,95975.0,5e-07]
[1734955916918,0.63926462,95976.0,95975.0,5e-07]
[1734955917610,0.67141228,95976.0,95975.0,5e-07]
[1734955917854,0.71971228,95976.0,95975.0,5e-07]
[1734955918601,0.68756462,95976.0,95975.0,5e-07]
[1734955919047,0.71972913,95976.0,95975.0,5e-07]
[1734955919289,0.68756462,95976.0,95975.0,5e-07]
[1734955919510,0.71973123,95976.0,95975.0,5e-07]
[1734955919728,0.71973123,95976.0,95975.0,2e-07]
[1734955921360,0.16858041,95956.0,95955.0,6e-07]
[1734955921588,0.75075277,95956.0,95955.0,0.00053419]
[1734955922808,0.75375277,95956.0,95955.0,0.00053419]
[1734955923718,0.67385277,95956.0,95955.0,0.00053419]
[1734955927510,0.69490226,95956.0,95955.0,0.00053419]
[1734955927761,0.69390226,95956.0,95955.0,0.00053419]
[1734955928053,0.69690226,95956.0,95955.0,0.00053419]
[1734955928273,0.69490226,95956.0,95955.0,0.00053419]
[1734955928505,0.69190226,95956.0,95955.0,0.00053419]
[1734955928733,0.208483,95931.0,95928.0,0.05600578]
[1734955928970,0.208487,95929.0,95928.0,0.05616585]
[1734955931870,0.208535,95907.0,95906.0,0.00016918]
[1734955932104,0.31252132,95907.0,95906.0,0.00016918]
[1734955933512,0.31352132,95907.0,95906.0,0.00016918]
[1734955933812,0.31352132,95907.0,95906.0,0.00116918]
[1734955934255,0.31352132,95907.0,95906.0,0.00016918]
[1734955934528,0.36572585,95907.0,95906.0,0.00116918]
[1734955935033,0.31352132,95907.0,95906.0,0.00116918]
[1734955935497,0.10498632,95907.0,95906.0,0.00116918]
[1734955936248,0.10498632,95907.0,95906.0,0.01660498]
[1734955936496,0.10498632,95907.0,95906.0,0.00116918]
[1734955936738,0.10398632,95907.0,95906.0,0.01560498]
[1734955937000,0.10698632,95907.0,95906.0,0.00016918]
[1734955937228,0.16339055,95907.0,95906.0,0.00016918]
[1734955937455,0.16039055,95907.0,95906.0,0.00016918]
[1734955937687,0.16839055,95907.0,95906.0,0.00016918]
[1734955938115,0.16539055,95907.0,95906.0,0.01560498]
[1734955938842,0.15639055,95907.0,95906.0,0.01560498]
[1734955939261,0.16339055,95907.0,95906.0,0.01660498]
[1734955939394,0.11498632,95907.0,95906.0,0.01660498]
[1734955940045,0.10798632,95907.0,95906.0,0.01560498]
[1734955940444,0.11498632,95907.0,95906.0,0.00116918]
[1734955940733,0.11498632,95907.0,95906.0,0.00016918]
[1734955940964,0.11498632,95907.0,95906.0,0.00116918]
[1734955940965,0.12198632,95907.0,95906.0,0.00116918]
[1734955941191,0.17589055,95907.0,95906.0,0.00116918]
[1734955952470,0.18573368,95907.0,95906.0,0.00116918]
[1734955952698,0.13182945,95907.0,95906.0,0.00116918]
[1734955959638,0.12198632,95907.0,95906.0,0.00116918]
[1734955961298,0.018,95907.0,95906.0,0.11268877]
[1734955961500,0.018,95907.0,95906.0,0.17697074]
[1734955961854,0.018,95907.0,95906.0,0.16982502]
[1734955967126,0.018,95907.0,95906.0,0.13840543]
[1734955967359,0.018,95907.0,95906.0,0.16982502]
[1734955967849,0.018,95907.0,95906.0,0.1708676]
[1734955968036,0.018,95907.0,95906.0,0.16982502]
[1734955972956,0.018,95907.0,95906.0,0.01120543]
[1734955973154,0.018,95907.0,95906.0,0.00116918]
[1734955973155,0.12198632,95907.0,95906.0,0.00116918]
[1734955973456,0.15503805,95907.0,95906.0,0.01609655]
[1734955973720,0.15503805,95907.0,95906.0,0.00116918]
[1734955974230,0.40503805,95907.0,95906.0,0.00116918]
[1734955974742,0.43743803,95907.0,95906.0,0.00116918]
[1734955975935,0.46043803,95907.0,95906.0,0.00116918]
[1734955976901,0.3043863,95907.0,95906.0,0.00116918]
[1734955977139,0.12198632,95907.0,95906.0,0.00116918]
[1734955978357,0.018,95907.0,95906.0,0.03258877]
[1734955979115,0.018,95907.0,95906.0,0.04751614]
[1734955980774,0.518,95907.0,95906.0,0.03258877]
[1734955982004,0.518,95907.0,95906.0,0.04792298]
[1734955982249,1.018,95907.0,95906.0,0.04792298]
[1734955982718,1.018,95907.0,95906.0,0.03258877]
[1734955984229,1.018,95907.0,95906.0,0.04792298]
[1734955984727,1.018,95907.0,95906.0,0.05806337]
[1734955984923,1.018,95907.0,95906.0,0.13676337]
[1734955985188,1.018,95907.0,95906.0,0.28676337]
[1734955985438,1.014,95907.0,95906.0,0.28676337]
[1734955986763,1.0,95907.0,95906.0,0.28576337]
[1734955987016,1.0,95907.0,95906.0,0.77261]
[1734955987017,1.001,95907.0,95906.0,0.77261]
[1734955987463,1.001,95907.0,95906.0,0.76961]
[1734955987703,1.002,95907.0,95906.0,0.77261]
[1734955987940,1.001,95907.0,95906.0,0.77261]
[1734955988186,1.001,95907.0,95906.0,0.63437459]
[1734955989627,1.001,95907.0,95906.0,0.82153729]
[1734955991924,1.001,95907.0,95906.0,0.63437459]
[1734955994239,1.001,95907.0,95906.0,0.77468647]
[1734955994683,1.001,95907.0,95906.0,0.87867279]
[1734955994939,1.001,95907.0,95906.0,1.02777279]
[1734955995165,1.001,95907.0,95906.0,0.88746091]
[1734955995616,0.47901973,95907.0,95906.0,0.88746091]
[1734955997549,0.47901973,95907.0,95906.0,0.54184969]
[1734956002449,0.47919093,95907.0,95906.0,0.54184969]
[1734956005776,0.47919093,95907.0,95906.0,0.58356569]
[1734956007392,0.47919093,95907.0,95906.0,1.1161867]
[1734956008886,0.48919093,95907.0,95906.0,1.1161867]
[1734956011957,0.48919093,95907.0,95906.0,0.929024]
[1734956013047,0.48919093,95907.0,95906.0,0.952024]
[1734956013303,0.42662893,95907.0,95906.0,0.952024]
[1734956013545,0.2496681,95907.0,95906.0,1.052024]
[1734956013774,0.24528282,95907.0,95906.0,1.052024]
[1734956014221,0.0774,95954.0,95927.0,0.03141959]
[1734956014444,0.0774,95954.0,95927.0,0.03246183]
[1734956014661,0.0774,95954.0,95927.0,0.04459674]
[1734956015997,0.0774,95954.0,95927.0,0.04559674]
[1734956016429,0.0774,95954.0,95927.0,0.04964171]
[1734956016676,0.0774,95954.0,95927.0,0.09774171]
[1734956017137,0.0774,95954.0,95927.0,0.09874171]
[1734956018076,0.0774,95954.0,95927.0,0.45272803]
[1734956018312,0.0774,95954.0,95927.0,0.45168579]
[1734956019247,0.0001716,95956.0,95927.0,0.45168579]
[1734956019248,0.0001716,95956.0,95927.0,0.47468579]
[1734956020433,0.0001716,95956.0,95927.0,0.56820926]
[1734956020913,0.0001716,95956.0,95927.0,0.57815232]
[1734956021737,0.0001716,95956.0,95927.0,1.16091406]
[1734956022779,0.0001716,95956.0,95927.0,1.36573906]
[1734956023188,0.208442,95950.0,95927.0,1.05923315]
[1734956023395,0.0778,95940.0,95927.0,0.55465274]
[1734956023974,0.0778,95940.0,95927.0,0.20954253]
[1734956024217,0.0778,95940.0,95927.0,0.05954253]
[1734956024430,0.0778,95940.0,95927.0,0.06058483]
[1734956030082,0.0825,95951.0,95927.0,0.06058483]
[1734956032529,0.0825,95951.0,95927.0,0.41457115]
[1734956032740,0.0825,95951.0,95927.0,0.41352885]
[1734956034374,0.0825,95951.0,95927.0,0.43652885]
[1734956038245,0.0825,95951.0,95927.0,0.20954253]
[1734956040012,0.0825,95951.0,95927.0,0.05954253]
[1734956040229,0.0825,95951.0,95927.0,0.4375711]
[1734956040437,0.0825,95951.0,95927.0,0.43652885]
[1734956040912,0.0001716,95956.0,95927.0,0.43652885]
[1734956041136,6e-07,95928.0,95927.0,1.04892885]
[1734956041355,6e-07,95928.0,95927.0,1.09812885]
[1734956042044,0.0001716,95956.0,95955.0,0.23985059]
[1734956042455,0.0001716,95956.0,95955.0,0.25584277]
[1734956043310,0.0001716,95956.0,95955.0,0.24952928]
[1734956043739,0.0071716,95956.0,95955.0,0.25052928]
[1734956044429,0.0111716,95956.0,95955.0,0.25052928]
[1734956045976,0.0111716,95956.0,95955.0,0.4775156]
[1734956046478,0.0111716,95956.0,95955.0,0.63768146]
[1734956046716,0.0071716,95956.0,95955.0,0.63768146]
[1734956046954,0.0001716,95956.0,95955.0,0.63668146]
[1734956047209,0.0021716,95956.0,95955.0,0.63668146]
[1734956047434,0.0051716,95956.0,95955.0,0.63668146]
[1734956048408,0.0001714,95987.0,95986.0,0.38978259]
[1734956048630,4e-07,95987.0,95986.0,0.49376891]
[1734956048847,4e-07,95987.0,95986.0,0.60323226]
[1734956049076,0.0001712,96003.0,96002.0,0.38974759]
[1734956049319,0.0001712,96003.0,96002.0,0.51673391]
[1734956049545,0.0001712,96003.0,96002.0,0.62672846]
[1734956049772,0.09253775,96033.0,96023.0,0.23970259]
[1734956050026,0.00070435,96024.0,96023.0,0.23970259]
[1734956050561,0.00070435,96024.0,96023.0,0.24963785]
[1734956052153,0.00070435,96024.0,96023.0,0.21821826]
[1734956052397,0.00170435,96024.0,96023.0,0.24963785]
[1734956052618,0.0809,96040.0,96030.0,0.208267]
[1734956052879,0.08095322,96040.0,96035.0,0.03141959]
[1734956053125,0.08095322,96040.0,96037.0,0.03141959]
[1734956053572,0.08095322,96040.0,96038.0,0.04115285]
[1734956053800,0.08295322,96040.0,96039.0,0.03141959]
[1734956054023,0.08295322,96040.0,96039.0,0.0411522]
[1734956055254,5.322e-05,96040.0,96039.0,0.0411522]
[1734956055498,5.322e-05,96040.0,96039.0,0.04219332]
[1734956055735,5.322e-05,96040.0,96039.0,0.0411522]
[1734956056221,0.01205322,96040.0,96039.0,0.04319332]
[1734956056463,0.01205322,96040.0,96039.0,0.0421522]
[1734956056969,0.01205322,96040.0,96039.0,0.0411522]
[1734956057208,0.00405322,96040.0,96039.0,0.0411522]
[1734956057452,0.00805322,96040.0,96039.0,0.04219333]
[1734956058147,0.00405322,96040.0,96039.0,0.04219333]
[1734956058369,0.083,96061.0,96040.0,0.416492]
[1734956058591,0.083,96061.0,96041.0,0.00104109]
[1734956058818,0.083,96061.0,96043.0,0.20824]
[1734956059047,0.083,96061.0,96048.0,0.208229]
[1734956059563,0.083,96061.0,96049.0,0.00969662]
[1734956060030,0.0081714,96050.0,96049.0,0.00969662]
[1734956060266,0.0031714,96050.0,96049.0,0.03141959]
[1734956060506,0.0031714,96050.0,96049.0,0.00969004]
[1734956060750,0.18475772,96050.0,96049.0,0.00969004]
[1734956061001,0.18475772,96050.0,96043.0,0.03141959]
[1734956061229,0.10398632,96049.0,96043.0,0.03141959]
[1734956061446,0.208229,96048.0,96043.0,0.03141959]
[1734956061661,0.10398632,96047.0,96043.0,0.03141959]
[1734956062356,0.10398632,96047.0,96043.0,0.03541959]
[1734956062595,0.10398632,96047.0,96043.0,0.03141959]
[1734956062832,0.208233,96046.0,96043.0,0.03141959]
[1734956063066,0.416466,96046.0,96043.0,0.03141959]
[1734956063318,0.10898632,96047.0,96038.0,0.03141959]
[1734956063561,0.03951495,96046.0,96027.0,5.322e-05]
[1734956063781,0.22858632,96045.0,96043.0,0.002]
[1734956064668,0.208237,96044.0,96043.0,0.002]
[1734956064857,0.31222332,96044.0,96043.0,0.002]
[1734956065117,0.10398632,96044.0,96043.0,0.005]
[1734956065346,0.34620531,96044.0,96043.0,0.005]
[1734956065543,0.34620531,96044.0,96028.0,0.03141959]
[1734956065544,0.208268,96031.0,96028.0,0.03141959]
[1734956065830,0.20826,96034.0,96028.0,0.03141959]
[1734956066111,0.1256,96045.0,96033.0,0.03141959]
[1734956066339,0.20825,96039.0,96033.0,0.03141959]
[1734956066573,0.10398632,96038.0,96033.0,0.03141959]
[1734956066798,0.208253,96037.0,96033.0,0.03141959]
[1734956067046,0.31223932,96037.0,96033.0,0.03141959]
[1734956067707,0.10398632,96037.0,96033.0,0.03141959]
[1734956067910,0.001,96034.0,96033.0,0.03141959]
[1734956068568,0.001,96034.0,96033.0,0.03841959]
[1734956068767,0.10498632,96037.0,96033.0,0.03141959]
[1734956069332,0.005,96034.0,96033.0,0.03141959]
[1734956069766,0.003,96034.0,96033.0,0.03141959]
[1734956070820,0.003,96034.0,96033.0,0.0411338]
[1734956071025,0.208242,96042.0,96033.0,0.03141959]
[1734956071250,0.10398632,96041.0,96033.0,0.03141959]
[1734956071660,0.003,96034.0,96033.0,0.03141959]
[1734956071872,0.01,96034.0,96033.0,0.03241959]
[1734956072114,0.003,96034.0,96033.0,0.0411338]
[1734956072336,0.208252,96038.0,96033.0,0.0411338]
[1734956072563,0.208252,96038.0,96033.0,0.03141959]
[1734956073001,0.007,96034.0,96033.0,0.03241959]
[1734956073219,0.01,96034.0,96033.0,0.03241959]
[1734956074154,0.003,96034.0,96033.0,0.03141959]
[1734956074584,0.003,96034.0,96033.0,0.03150509]
[1734956075072,0.007,96034.0,96033.0,0.03250509]
[1734956075252,0.007,96034.0,96033.0,0.03150509]
[1734956075766,0.007,96034.0,96033.0,0.03250509]
[1734956078479,0.21701015,96034.0,96033.0,8.55e-05]
[1734956078731,0.21701015,96034.0,96033.0,0.0030855]
[1734956080017,0.46801015,96034.0,96033.0,0.0030855]
[1734956080450,0.50040716,96034.0,96033.0,8.55e-05]
[1734956080660,0.51170013,96034.0,96033.0,0.0090855]
[1734956081304,0.51070013,96034.0,96033.0,0.0090855]
[1734956081528,0.50970013,96034.0,96033.0,8.55e-05]
[1734956081752,0.50970013,96034.0,96033.0,0.0040855]
[1734956081990,0.36748333,96034.0,96033.0,0.0040855]
[1734956082202,0.18508632,96034.0,96033.0,0.0040855]
[1734956083030,0.18608632,96034.0,96033.0,0.0040855]
[1734956083544,0.18608632,96034.0,96033.0,8.55e-05]
[1734956084483,0.18508632,96034.0,96033.0,0.0040855]
[1734956084720,0.18508632,96034.0,96033.0,8.55e-05]
[1734956085161,0.19108632,96034.0,96033.0,0.0010855]
[1734956085406,0.19308632,96034.0,96033.0,8.55e-05]
[1734956085624,0.008,96034.0,96033.0,0.03150509]
[1734956085848,0.01,96034.0,96033.0,0.03150509]
[1734956086831,0.208253,96037.0,96033.0,0.03150509]
[1734956087270,0.20824,96043.0,96040.0,0.03141959]
[1734956088684,0.208231,96048.0,96040.0,0.03141959]
[1734956089120,0.2498893,96042.0,96040.0,0.03141959]
[1734956089505,0.208242,96042.0,96040.0,0.03141959]
[1734956090634,0.208242,96042.0,96040.0,0.03441959]
[1734956090856,0.208238,96044.0,96040.0,0.03141959]
[1734956091118,0.31222432,96044.0,96040.0,0.03141959]
[1734956091372,0.52046232,96044.0,96040.0,0.03541959]
[1734956092019,0.52046232,96044.0,96040.0,0.03141959]
[1734956093414,0.52046232,96044.0,96040.0,0.03441959]
[1734956093646,0.52046232,96044.0,96040.0,0.03141959]
[1734956093878,0.52046232,96044.0,96040.0,0.03341959]
[1734956095280,0.2083964,96050.0,96043.0,0.03141959]
[1734956095507,0.2083964,96050.0,96045.0,0.03141959]
[1734956095508,0.13648724,96049.0,96045.0,0.03141959]
[1734956095737,0.208229,96048.0,96045.0,0.03141959]
[1734956095963,0.10398632,96049.0,96045.0,0.03141959]
[1734956096405,0.208229,96048.0,96045.0,0.03141959]
[1734956097924,0.209229,96048.0,96045.0,0.04041959]
[1734956098386,0.210229,96048.0,96045.0,0.04041959]
[1734956099428,0.2104,96048.0,96045.0,0.04041959]
[1734956100518,0.418629,96048.0,96045.0,0.04041959]
[1734956101446,0.331833,96046.0,96045.0,0.009]
[1734956101669,0.78689948,96046.0,96045.0,0.009]
[1734956101921,0.78689948,96046.0,96045.0,1e-08]
[1734956102363,0.81999437,96046.0,96045.0,1e-08]
[1734956102578,0.81992206,96046.0,96045.0,1e-08]
[1734956102812,0.92390838,96046.0,96045.0,1e-08]
[1734956103443,0.208259,96034.0,96033.0,8.55e-05]
[1734956103662,0.34474507,96034.0,96033.0,8.55e-05]
[1734956104115,0.31224532,96034.0,96033.0,8.55e-05]
[1734956104339,0.208248,96039.0,96033.0,8.55e-05]
[1734956104560,0.208253,96037.0,96033.0,8.55e-05]
[1734956104852,0.31223932,96037.0,96033.0,8.55e-05]
[1734956105546,0.52049332,96037.0,96033.0,8.55e-05]
[1734956105940,0.208257,96035.0,96033.0,8.55e-05]
[1734956106584,0.10398632,96037.0,96033.0,8.55e-05]
[1734956106853,0.001,96037.0,96036.0,0.03141959]
[1734956107059,0.208246,96041.0,96036.0,0.03141959]
[1734956107295,0.042248,96040.0,96036.0,0.03141959]
[1734956107918,0.001,96037.0,96036.0,0.03141959]
[1734956108192,0.001,96037.0,96036.0,0.11251959]
[1734956108415,0.001,96037.0,96036.0,0.16121959]
[1734956108639,0.001,96037.0,96036.0,0.09026078]
[1734956109600,0.0001714,96050.0,96036.0,0.09026078]
[1734956109825,0.0001714,96050.0,96037.0,0.208253]
[1734956110902,0.12485984,96047.0,96036.0,0.001]
[1734956111330,0.208233,96046.0,96036.0,8.55e-05]
[1734956111548,0.10398632,96045.0,96037.0,0.001]
[1734956111772,0.208245,96041.0,96037.0,0.001]
[1734956112443,0.41649,96041.0,96037.0,0.001]
[1734956112961,0.208236,96045.0,96036.0,8.55e-05]
[1734956113165,0.000171,96046.0,96037.0,0.208253]
[1734956113386,0.000171,96046.0,96038.0,0.00104109]
[1734956113608,0.000171,96046.0,96039.0,0.00104109]
[1734956113832,0.000171,96046.0,96039.0,0.00804316]
[1734956114050,0.000171,96046.0,96037.0,0.001]
[1734956114270,0.000171,96046.0,96040.0,0.00800886]
[1734956114456,0.000171,96046.0,96037.0,0.001]
[1734956114681,0.000171,96046.0,96041.0,0.00800821]
[1734956114900,0.000171,96046.0,96039.0,0.001]
[1734956115119,0.000171,96046.0,96042.0,0.00800175]
[1734956115341,0.000171,96046.0,96039.0,0.001]
[1734956115342,0.000171,96046.0,96043.0,0.00104109]
[1734956115562,0.000171,96046.0,96043.0,0.0080011]
[1734956115786,0.000171,96046.0,96039.0,0.001]
[1734956116018,0.000171,96046.0,96040.0,0.00104109]
[1734956116253,0.000171,96046.0,96040.0,0.00904415]
[1734956116645,0.001171,96046.0,96040.0,0.00904415]
[1734956117340,0.001171,96046.0,96040.0,0.01000306]
[1734956117673,0.001171,96046.0,96040.0,0.002]
[1734956117873,0.001171,96046.0,96040.0,0.00304109]
[1734956118075,0.001171,96046.0,96041.0,0.00800241]
[1734956118475,0.001171,96046.0,96042.0,0.00104109]
[1734956118684,0.001171,96046.0,96042.0,0.00800175]
[1734956118909,0.000171,96046.0,96038.0,0.208249]
[1734956119125,0.000171,96046.0,96043.0,0.0080011]
[1734956119334,0.000171,96046.0,96040.0,0.00504109]
[1734956119543,0.000171,96046.0,96044.0,0.00800045]
[1734956119754,0.000171,96046.0,96042.0,0.003]
[1734956119968,0.000171,96046.0,96045.0,0.0079998]
[1734956120186,0.000171,96046.0,96043.0,0.00104109]
[1734956120396,0.000171,96046.0,96045.0,0.0079998]
[1734956120899,0.007171,96046.0,96042.0,0.001]
[1734956121157,0.007171,96046.0,96045.0,0.0079998]
[1734956121375,0.010171,96046.0,96042.0,0.0020411]
[1734956121812,0.010171,96046.0,96043.0,0.0080011]
[1734956122265,0.003171,96046.0,96033.0,0.09305747]
[1734956122479,0.011171,96046.0,96045.0,0.001]
[1734956122702,0.208246,96041.0,96033.0,0.09305747]
[1734956122928,0.286535,96045.0,96033.0,0.09305747]
[1734956123146,0.286535,96045.0,96043.0,0.001]
[1734956123365,0.286535,96045.0,96033.0,0.09305747]
[1734956123366,0.208235,96045.0,96033.0,0.09305747]
[1734956123588,0.208235,96045.0,96033.0,8.55e-05]
[1734956124039,0.210235,96045.0,96033.0,8.55e-05]
[1734956124478,0.208235,96045.0,96033.0,8.55e-05]
[1734956124727,0.209235,96045.0,96033.0,8.55e-05]
[1734956124947,0.001,96045.0,96033.0,8.55e-05]
[1734956125191,0.00144596,96046.0,96042.0,0.208241]
[1734956125418,0.007,96045.0,96043.0,0.0090011]
[1734956125630,0.007,96045.0,96044.0,0.208237]
[1734956125851,0.011,96045.0,96044.0,0.00800045]
[1734956126064,0.011,96045.0,96042.0,0.208241]
[1734956126295,0.006,96045.0,96044.0,0.00800045]
[1734956126502,0.013,96045.0,96043.0,0.001]
[1734956126740,0.007,96045.0,96044.0,0.00800045]
[1734956127192,0.018,96045.0,96044.0,0.209237]
[1734956127372,0.018,96045.0,96044.0,0.21676286]
[1734956127608,0.015,96045.0,96044.0,0.21676286]
[1734956128062,0.018,96045.0,96044.0,0.26506286]
[1734956128286,0.003,96045.0,96044.0,0.26453745]
[1734956128721,0.008,96045.0,96044.0,0.26453745]
[1734956128955,0.003,96045.0,96044.0,0.26453745]
[1734956129163,0.008,96045.0,96044.0,0.26453745]
[1734956129983,0.003,96045.0,96044.0,0.26453745]
[1734956130888,0.004,96045.0,96044.0,0.26453745]
[1734956131567,0.001,96045.0,96044.0,0.26453745]
[1734956131994,0.001,96045.0,96044.0,0.26902444]
[1734956131995,0.003,96045.0,96044.0,0.26902444]
[1734956132213,0.003,96045.0,96044.0,0.37301076]
[1734956132436,0.002,96045.0,96044.0,0.37301076]
[1734956132656,0.004,96045.0,96044.0,0.37301076]
[1734956132922,0.001,96045.0,96044.0,0.72181076]
[1734956133137,0.002,96045.0,96044.0,0.72181076]
[1734956133356,0.001,96045.0,96044.0,1.2060639]
[1734956133596,0.000171,96048.0,96047.0,0.023]
[1734956133825,0.000171,96048.0,96047.0,0.22698632]
[1734956134057,0.000171,96048.0,96047.0,0.2394624]
[1734956134293,0.000171,96048.0,96047.0,0.1394624]
[1734956134526,0.000171,96048.0,96047.0,0.48402666]
[1734956134734,0.000171,96048.0,96047.0,0.58402666]
[1734956135637,0.000171,96048.0,96047.0,0.58502666]
[1734956135852,0.001171,96048.0,96047.0,0.58402666]
[1734956136038,0.001171,96048.0,96047.0,0.73502666]
[1734956136311,0.000171,96048.0,96047.0,0.73502666]
[1734956136530,0.000171,96048.0,96047.0,0.73602666]
[1734956137009,0.0001714,96050.0,96049.0,0.3976]
[1734956137194,0.0001714,96050.0,96049.0,0.50158632]
[1734956137468,0.0001714,96050.0,96049.0,0.51406101]
[1734956137902,0.0001714,96050.0,96049.0,0.61406101]
[1734956138616,0.0001714,96050.0,96049.0,0.41406101]
[1734956138877,0.0001714,96050.0,96049.0,0.51406101]
[1734956139292,0.0001714,96050.0,96049.0,0.85862527]
[1734956139736,8.57e-05,96075.0,96072.0,0.208176]
[1734956139979,8.57e-05,96075.0,96074.0,0.208172]
[1734956140195,8.57e-05,96075.0,96073.0,0.01240017]
[1734956140401,8.57e-05,96075.0,96074.0,0.01344048]
[1734956141029,0.00013906,96075.0,96074.0,0.01344048]